fUSD/lending_fUSD_20251119
["ID","MTS","AMOUNT","RATE_DAILY","PERIOD"]
[394387314,1763517033559,-1087.27835808,0.0003943,4]
[394387315,1763517033570,-37351.4903149,0.0003943,4]
[394387316,1763517033586,-75464.3391158,0.0003943,4]
[394387317,1763517033599,-212174.2093883,0.0003943,4]
[394387318,1763517033608,-203.61955083,0.0003943,2]
[394387319,1763517033617,-150.53,0.0003943,2]
[394387320,1763517033627,-591.90478669,0.00039438,2]
[394387321,1763517033636,-204.34681054,0.00039439,15]
[394387322,1763517033648,-500.0,0.00039439,15]
[394387323,1763517033659,-526.7448619,0.00039439,15]
[394387324,1763517033668,-500.0,0.00039439,7]
[394387325,1763517033678,-500.0,0.00039439,7]
[394387326,1763517033688,-500.0,0.00039439,7]
[394387327,1763517033697,-500.0,0.00039439,2]
[394387328,1763517033709,-500.0,0.00039439,2]
[394387329,1763517033718,-500.0,0.00039439,2]
[394387330,1763517033728,-500.0,0.00039439,2]
[394387331,1763517033737,-21255.9347039,0.0003944,2]
[394387332,1763517033747,-414.64306849,0.00039473,5]
[394387333,1763517033757,-557.0579094,0.00039473,5]
[394387334,1763517033766,-501.79943245,0.00039473,5]
[394387335,1763517033776,-9568.09831195,0.00039595,2]
[394387336,1763517033786,-4396.55802833,0.00039602,2]
[394387337,1763517033795,-353.14,0.00039654,2]
[394387338,1763517033804,-162.91919545,0.00039699,30]
[394387339,1763517033815,-166.66,0.00039703,30]
[394387340,1763517033824,-197.40270417,0.00039736,2]
[394387341,1763517033833,-500.0,0.00039781,2]
[394387342,1763517033842,-9568.09831195,0.0003986,15]
[394387343,1763517033852,-4396.55802833,0.00039866,2]
[394387344,1763517033861,-152.0,0.00039892,3]
[394387345,1763517033870,-635.96,0.0004,120]
[394387346,1763517033880,-2000.0,0.0004,2]
[394387347,1763517033890,-270.39,0.0004,120]
[394387348,1763517033899,-192.06,0.0004,120]
[394387349,1763517033909,-156.59,0.0004,120]
[394387350,1763517033918,-219.86,0.0004,120]
[394387351,1763517033927,-4856.86736663,0.0004,11]
[394387352,1763517033937,-1029.34,0.0004,2]
[394387353,1763517033947,-9568.09831195,0.00040125,15]
[394387354,1763517033956,-4396.55802833,0.00040131,15]
[394387355,1763517033966,-162.91919545,0.00040137,30]
[394387356,1763517033975,-381.0,0.00040156,7]
[394387357,1763517033984,-177.39,0.00040164,2]
[394387358,1763517033995,-381.0,0.0004019,2]
[394387359,1763517034005,-521.42,0.00040319,2]
[394387360,1763517034015,-9568.09831195,0.0004039,15]
[394387361,1763517034024,-4396.55802833,0.00040395,15]
[394387362,1763517034033,-166.66,0.00040474,30]
[394387363,1763517034043,-1999.99,0.000405,2]
[394387364,1763517034052,-2000.0,0.000405,2]
[394387365,1763517034061,-2000.0,0.000405,2]
[394387366,1763517034071,-2000.0,0.000405,2]
[394387367,1763517034080,-2029.13,0.000405,2]
[394387368,1763517034265,-1216.53579146,0.00040554,2]
[394387369,1763517034275,-162.91919545,0.00040575,30]
[394387370,1763517034284,-381.0,0.00040632,7]
[394387371,1763517034293,-4164.011242,0.00040656,15]
[394387372,1763517034306,-5404.08706995,0.00040656,15]
[394387373,1763517034315,-4396.55802833,0.00040659,15]
[394387374,1763517034324,-1000.0,0.00040772,120]
[394387375,1763517034338,-719.03,0.00040849,2]
[394387376,1763517034358,-478.61,0.00040849,2]
[394387377,1763517034371,-9568.09831195,0.00040921,15]
[394387378,1763517034380,-4396.55802833,0.00040923,15]
[394387379,1763517034391,-881.39224307,0.00040967,120]
[394387380,1763517034403,-300.0,0.00040986,2]
[394387381,1763517034412,-169.55,0.00040986,2]
[394387382,1763517034421,-301.14,0.00040986,2]
[394387383,1763517034432,-416.99,0.00040986,2]
[394387384,1763517034442,-1209.94,0.00040986,2]
[394387385,1763517034456,-150.0,0.00040986,2]
[394387386,1763517034468,-177.45,0.00040986,2]
[394387387,1763517034478,-561.77,0.00040986,2]
[394387388,1763517034487,-169.55,0.00040986,2]
[394387389,1763517034497,-150.0,0.00040986,2]
[394387390,1763517034508,-177.45,0.00040986,2]
[394387391,1763517034517,-1209.94,0.00040986,2]
[394387392,1763517034526,-550.51,0.00040986,2]
[394387393,1763517034535,-416.99,0.00040986,2]
[394387394,1763517034544,-151.12,0.00040986,2]
[394387395,1763517034554,-416.99,0.00040986,2]
[394387396,1763517034564,-550.51,0.00040986,2]
[394387397,1763517034575,-169.55,0.00040986,2]
[394387398,1763517034584,-1209.94,0.00040986,2]
[394387399,1763517034594,-177.45,0.00040986,2]
[394387400,1763517034603,-150.0,0.00040986,2]
[394387401,1763517034612,-150.0,0.00040986,2]
[394387402,1763517034622,-162.91919545,0.00041014,30]
[394387403,1763517034631,-500.0,0.00041095,2]
[394387404,1763517034641,-710.35,0.00041095,2]
[394387405,1763517034651,-502.58141552,0.00041095,2]
[394387406,1763517034660,-4200.24,0.00041095,2]
[394387407,1763517034669,-300.0,0.00041095,2]
[394387408,1763517034679,-300.99786132,0.00041095,2]
[394387409,1763517034688,-154.88,0.00041096,2]
[394387410,1763517034697,-443.78565574,0.000411,2]
[394387411,1763517034707,-220.015048,0.00041147,2]
[394387412,1763517034717,-855.0,0.00041161,30]
[394387413,1763517034726,-381.0,0.00041162,2]
[394387414,1763517034737,-2251.0,0.0004117,7]
[394387415,1763517034747,-1285.74242795,0.00041184,120]
[394387416,1763517034758,-9568.09831195,0.00041186,15]
[394387417,1763517034767,-4396.55802833,0.00041188,15]
[394387418,1763517034777,-500.0,0.00041264,7]
[394387419,1763517034786,-500.0,0.00041273,10]
[394387420,1763517034795,-565.57371435,0.00041273,10]
[394387421,1763517034804,-501.20914453,0.00041273,10]
[394387422,1763517034813,-504.16500117,0.00041273,10]
[394387423,1763517034822,-502.57764204,0.00041273,10]
[394387424,1763517034832,-500.0,0.00041273,10]
[394387425,1763517034841,-532.52190918,0.00041273,10]
[394387426,1763517034850,-506.02329808,0.00041273,10]
[394387427,1763517034860,-500.0,0.00041273,10]
[394387428,1763517034869,-500.0,0.00041273,10]
[394387429,1763517034879,-500.94429886,0.00041273,10]
[394387430,1763517034890,-500.0,0.00041273,10]
[394387431,1763517034899,-512.26116544,0.00041273,10]
[394387432,1763517034909,-500.0,0.00041273,10]
[394387433,1763517034918,-500.0,0.00041273,10]
[394387434,1763517034927,-500.0,0.00041273,2]
[394387435,1763517034936,-150.53,0.00041274,2]
[394387436,1763517034946,-150.53,0.00041274,2]
[394387437,1763517034956,-500.0,0.00041283,7]
[394387438,1763517034966,-500.0,0.00041283,7]
[394387439,1763517034975,-500.0,0.00041283,2]
[394387440,1763517034984,-500.0,0.00041283,2]
[394387441,1763517034993,-74149.68132519,0.00041284,2]
[394387442,1763517035005,-2082.37526384,0.00041284,2]
[394387443,1763517035017,-776.28283243,0.00041284,2]
[394387444,1763517035028,-555.66208952,0.00041284,2]
[394387445,1763517035040,-3551.58743937,0.00041284,2]
[394387446,1763517035051,-4754.8396003,0.00041284,2]
[394387447,1763517035062,-250.0,0.00041284,2]
[394387448,1763517035073,-703.60373691,0.00041284,2]
[394387453,1763517037770,-197.40270417,0.00040132,2]
[394387454,1763517037779,-608.26789573,0.00040554,2]
[394387455,1763517037788,-20154.92858494,0.00041284,2]
[394387456,1763517037799,-3694.78493656,0.00041284,2]
[394387457,1763517037810,-889.24356129,0.00041284,2]
[394387458,1763517037875,-4000.0,0.00041284,2]
[394387459,1763517037886,-419428.47247995,0.00041284,2]
[394387460,1763517037896,-12389.4538653,0.00041284,2]
[394387461,1763517037905,-31197.5336611,0.00041284,2]
[394387462,1763517037914,-1325.857,0.0004129,2]
[394387463,1763517037924,-3433.0,0.0004129,2]
[394387464,1763517037932,-578.536,0.0004129,2]
[394387465,1763517037942,-826.0,0.0004129,2]
[394387466,1763517037951,-6492.0,0.0004129,2]
[394387467,1763517037961,-1605.0,0.0004129,2]
[394387468,1763517037970,-524.984,0.0004129,2]
[394387469,1763517037979,-1584.4673298,0.00041294,2]
[394387470,1763517037988,-501.35562362,0.00041369,2]
[394387471,1763517037998,-710.35,0.00041369,2]
[394387472,1763517038009,-4200.24,0.00041369,2]
[394387473,1763517038019,-300.0,0.00041369,2]
[394387474,1763517038030,-171.84,0.00041379,14]
[394387475,1763517038045,-1584.4673298,0.00041405,2]
[394387476,1763517038056,-1285.74242794,0.0004145,120]
[394387477,1763517038066,-9568.09831195,0.00041451,15]
[394387478,1763517038076,-4396.55802833,0.00041452,15]
[394387479,1763517038086,-220.0150481,0.00041462,2]
[394387480,1763517038096,-1000.0,0.00041544,14]
[394387481,1763517038105,-1000.0,0.0004155,14]
[394387482,1763517038115,-197.67881944,0.00041562,14]
[394387483,1763517038124,-1000.0,0.00041567,14]
[394387484,1763517038133,-1000.0,0.00041569,14]
[394387485,1763517038144,-300.0,0.00041572,2]
[394387486,1763517038155,-1000.0,0.00041576,14]
[394387487,1763517038166,-1000.0,0.00041578,14]
[394387488,1763517038176,-855.0,0.00041585,30]
[394387489,1763517038185,-1000.0,0.00041608,14]
[394387490,1763517038194,-500.0,0.00041611,2]
[394387491,1763517038203,-5328.3868,0.00041612,2]
[394387492,1763517038212,-198.54828745,0.00041633,14]
[394387493,1763517038221,-710.35,0.00041643,2]
[394387494,1763517038231,-4200.24,0.00041643,2]
[394387495,1763517038242,-300.0,0.00041643,2]
[394387496,1763517038252,-1000.0,0.00041652,14]
[394387497,1763517038261,-1000.0,0.00041663,14]
[394387498,1763517038270,-1000.0,0.00041665,14]
[394387499,1763517038280,-300.0,0.00041669,2]
[394387500,1763517038289,-1000.0,0.00041679,14]
[394387501,1763517038300,-197.55493053,0.000417,120]
[394387502,1763517038309,-182.57104162,0.000417,120]
[394387503,1763517038319,-196.78421099,0.000417,120]
[394387504,1763517038328,-150.0,0.000417,60]
[394387505,1763517038338,-300.0,0.00041706,2]
[394387506,1763517038347,-307.29731425,0.00041711,2]
[394387507,1763517038356,-23428.6974,0.00041712,2]
[394387508,1763517038366,-1000.0,0.00041712,2]
[394387509,1763517038376,-427.9119,0.00041712,10]
[394387510,1763517038386,-1285.74242794,0.00041716,120]
[394387511,1763517038395,-9568.09831195,0.00041716,15]
[394387512,1763517038405,-11955.58908399,0.00041716,2]
[394387513,1763517038414,-4396.55802833,0.00041716,15]
[394387514,1763517038424,-521.42,0.00041725,2]
[394387515,1763517038434,-1000.0,0.00041736,14]
[394387516,1763517038444,-1000.0,0.0004174,14]
[394387517,1763517038453,-171.84,0.00041744,14]
[394387518,1763517038463,-300.0,0.00041753,2]
[394387519,1763517038472,-1000.0,0.00041759,30]
[394387520,1763517038482,-1000.0,0.00041759,30]
[394387521,1763517038492,-1000.0,0.00041759,30]
[394387522,1763517038503,-1000.0,0.00041759,30]
[394387523,1763517038512,-1000.0,0.00041759,30]
[394387524,1763517038522,-1000.0,0.00041759,30]
[394387525,1763517038531,-1000.0,0.00041759,30]
[394387526,1763517038540,-1000.0,0.00041759,30]
[394387527,1763517038550,-300.0,0.00041761,2]
[394387528,1763517038559,-502.99680416,0.00041766,2]
[394387529,1763517038568,-150.53,0.00041767,2]
[394387530,1763517038577,-500.0,0.00041773,10]
[394387531,1763517038586,-300.0,0.00041777,2]
[394387532,1763517038599,-164.0,0.00041781,120]
[394387533,1763517038609,-150.0,0.00041799,2]
[394387534,1763517038620,-1061.59204541,0.00041799,2]
[394387535,1763517038633,-150.0,0.000418,47]
[394387536,1763517038644,-300.0,0.00041801,2]
[394387537,1763517038655,-2000.0,0.00041803,120]
[394387538,1763517038666,-200.0,0.00041803,120]
[394387539,1763517038677,-251.8106614,0.00041806,14]
[394387540,1763517038687,-203.61955083,0.00041806,7]
[394387541,1763517038698,-203.61955083,0.00041806,7]
[394387542,1763517038709,-500.0,0.00041807,7]
[394387543,1763517038720,-150.0,0.00041808,30]
[394387544,1763517038731,-202.22687553,0.00041808,30]
[394387545,1763517038742,-150.0,0.00041808,30]
[394387546,1763517038752,-150.0,0.00041808,30]
[394387547,1763517038763,-150.0,0.00041808,30]
[394387548,1763517038773,-150.0,0.00041808,30]
[394387549,1763517038783,-201.45395189,0.00041808,30]
[394387550,1763517038794,-205.10985574,0.00041808,30]
[394387551,1763517038804,-150.0,0.00041808,30]
[394387552,1763517038815,-500.0,0.00041808,30]
[394387553,1763517038826,-203.23919313,0.00041808,30]
[394387554,1763517038838,-500.0,0.00041808,30]
[394387555,1763517038850,-500.0,0.00041808,2]
[394387556,1763517038861,-497.0,0.00041808,30]
[394387557,1763517038872,-500.0,0.00041808,30]
[394387558,1763517038882,-820.0,0.00041808,120]
[394387559,1763517038892,-500.0,0.00041808,60]
[394387560,1763517038902,-159.33028222,0.00041808,60]
[394387561,1763517038913,-500.0,0.00041808,60]
[394387562,1763517038923,-440.0,0.00041808,60]
[394387563,1763517038934,-1085.16504,0.00041808,11]
[394387564,1763517038944,-150.0,0.00041808,2]
[394387565,1763517038953,-150.0,0.00041808,60]
[394387566,1763517038964,-150.0,0.00041808,2]
[394387567,1763517038975,-500.0,0.00041808,60]
[394387568,1763517038986,-500.0,0.00041808,30]
[394387569,1763517038997,-150.0,0.00041808,30]
[394387570,1763517039007,-169.55,0.00041808,30]
[394387571,1763517039018,-177.45,0.00041808,30]
[394387572,1763517039029,-374.83,0.00041808,30]
[394387573,1763517039041,-427.46,0.00041808,30]
[394387574,1763517039051,-354.48,0.00041808,30]
[394387575,1763517039063,-1244.21,0.00041808,30]
[394387576,1763517039074,-700.83,0.00041808,30]
[394387577,1763517039085,-478.61,0.00041808,30]
[394387578,1763517039096,-700.83,0.00041808,30]
[394387579,1763517039107,-478.61,0.00041808,30]
[394387580,1763517039118,-478.61,0.00041808,30]
[394387581,1763517039129,-700.83,0.00041808,30]
[394387582,1763517039141,-490.54,0.00041808,30]
[394387583,1763517039151,-700.83,0.00041808,30]
[394387584,1763517039166,-700.83,0.00041808,30]
[394387585,1763517039176,-700.83,0.00041808,30]
[394387587,1763517039188,-200.0,0.00041812,7]
[394387589,1763517039200,-153.63997531,0.00041812,31]
[394387591,1763517039210,-500.0,0.00041812,2]
[394387593,1763517039221,-3673.77446523,0.00041812,31]
[394387595,1763517039232,-500.0,0.00041812,2]
[394387596,1763517039245,-3673.77446523,0.00041812,31]
[394387598,1763517039256,-500.0,0.00041812,2]
[394387600,1763517039266,-3673.77446523,0.00041812,31]
[394387602,1763517039279,-3673.77446523,0.00041812,31]
[394387604,1763517039290,-500.0,0.00041812,2]
[394387606,1763517039300,-3673.77446523,0.00041812,31]
[394387607,1763517039311,-3673.77446523,0.00041812,31]
[394387609,1763517039322,-640.45503915,0.00041812,2]
[394387611,1763517039333,-3673.77446523,0.00041812,31]
[394387613,1763517039344,-3673.77446523,0.00041812,31]
[394387615,1763517039356,-3673.77446523,0.00041812,31]
[394387617,1763517039367,-3673.77446523,0.00041812,31]
[394387618,1763517039378,-3673.77446523,0.00041812,31]
[394387619,1763517039390,-3673.77446523,0.00041812,31]
[394387620,1763517039401,-3673.77446523,0.00041812,31]
[394387621,1763517039411,-3673.77446523,0.00041812,31]
[394387622,1763517039422,-3673.77446523,0.00041812,31]
[394387623,1763517039432,-3673.77446523,0.00041812,31]
[394387624,1763517039443,-3673.77446523,0.00041812,31]
[394387625,1763517039453,-3673.77446523,0.00041812,31]
[394387626,1763517039464,-3673.77446523,0.00041812,31]
[394387627,1763517039474,-3673.77446523,0.00041812,31]
[394387628,1763517039484,-3673.77446523,0.00041812,31]
[394387629,1763517039494,-3673.77446523,0.00041812,31]
[394387630,1763517039504,-3673.77446523,0.00041812,31]
[394387631,1763517039514,-3673.77446523,0.00041812,31]
[394387634,1763517039525,-3673.77446523,0.00041812,31]
[394387635,1763517039534,-3673.77446523,0.00041812,31]
[394387637,1763517039544,-224.4838957,0.00041812,31]
[394387638,1763517039555,-5306.56311644,0.00041812,31]
[394387639,1763517039566,-293.38389324,0.00041812,2]
[394387640,1763517039577,-5306.56311644,0.00041812,31]
[394387641,1763517039588,-500.0,0.00041813,2]
[394387642,1763517039598,-21255.9347039,0.00041813,30]
[394387643,1763517039607,-21255.9347039,0.00041813,30]
[394387644,1763517039616,-21255.9347039,0.00041813,30]
[394387645,1763517039626,-21255.9347039,0.00041813,30]
[394387646,1763517039635,-500.0,0.00041814,30]
[394387647,1763517039646,-500.0,0.00041814,30]
[394387648,1763517039656,-500.0,0.00041814,30]
[394387649,1763517039666,-150.0,0.00041815,30]
[394387650,1763517039677,-200.0,0.00041815,7]
[394387651,1763517039688,-213.234,0.00041815,30]
[394387652,1763517039699,-200.0,0.00041815,7]
[394387653,1763517039709,-500.0,0.00041815,2]
[394387654,1763517039720,-500.0,0.00041815,2]
[394387655,1763517039730,-500.0,0.00041815,2]
[394387656,1763517039737,-500.0,0.00041815,2]
[394387657,1763517039747,-183.58502316,0.00041815,2]
[394387658,1763517039754,-500.0,0.00041816,7]
[394387659,1763517039763,-500.0,0.00041816,7]
[394387660,1763517039771,-520.78152215,0.00041816,7]
[394387661,1763517039778,-294.111238,0.00041816,120]
[394387662,1763517039786,-294.111238,0.00041816,120]
[394387663,1763517039794,-294.111238,0.00041816,120]
[394387664,1763517039802,-294.111238,0.00041816,120]
[394387665,1763517039810,-294.111238,0.00041816,120]
[394387666,1763517039817,-294.111238,0.00041816,120]
[394387667,1763517039824,-294.111238,0.00041816,120]
[394387668,1763517039833,-294.111238,0.00041816,120]
[394387669,1763517039844,-294.111238,0.00041816,120]
[394387670,1763517039854,-294.111238,0.00041816,120]
[394387671,1763517039864,-294.111238,0.00041816,120]
[394387672,1763517039874,-294.111238,0.00041816,120]
[394387673,1763517039885,-294.111238,0.00041816,120]
[394387674,1763517039895,-294.111238,0.00041816,120]
[394387675,1763517039905,-294.111238,0.00041816,120]
[394387676,1763517039915,-294.111238,0.00041816,120]
[394387677,1763517039926,-294.111238,0.00041816,120]
[394387678,1763517039936,-294.111238,0.00041816,120]
[394387679,1763517039946,-294.111238,0.00041816,120]
[394387680,1763517039955,-294.111243,0.00041816,120]
[394387681,1763517039966,-151.0,0.00041816,120]
[394387682,1763517039976,-151.0,0.00041816,120]
[394387683,1763517039986,-151.0,0.00041816,120]
[394387684,1763517039996,-160.524456,0.00041816,120]
[394387685,1763517040006,-151.0,0.00041816,120]
[394387686,1763517040016,-151.0,0.00041816,120]
[394387687,1763517040026,-151.0,0.00041816,120]
[394387688,1763517040036,-151.0,0.00041816,120]
[394387689,1763517040046,-151.0,0.00041816,120]
[394387690,1763517040055,-151.0,0.00041816,120]
[394387691,1763517040066,-158.918337,0.00041816,120]
[394387692,1763517040076,-151.0,0.00041816,120]
[394387693,1763517040086,-154.897335,0.00041816,120]
[394387694,1763517040096,-151.0,0.00041816,120]
[394387695,1763517040106,-151.0,0.00041816,120]
[394387696,1763517040116,-159.230608,0.00041816,120]
[394387697,1763517040126,-235.541957,0.00041816,120]
[394387698,1763517040137,-151.0,0.00041816,120]
[394387699,1763517040147,-151.0,0.00041816,120]
[394387700,1763517040156,-151.0,0.00041816,120]
[394387701,1763517040167,-151.0,0.00041816,120]
[394387702,1763517040180,-151.0,0.00041816,120]
[394387703,1763517040190,-151.0,0.00041816,120]
[394387704,1763517040200,-151.0,0.00041816,120]
[394387705,1763517040211,-151.0,0.00041816,120]
[394387706,1763517040221,-151.0,0.00041816,120]
[394387707,1763517040231,-151.0,0.00041816,120]
[394387708,1763517040241,-151.0,0.00041816,120]
[394387709,1763517040252,-151.0,0.00041816,120]
[394387710,1763517040263,-151.0,0.00041816,120]
[394387711,1763517040273,-151.0,0.00041816,120]
[394387712,1763517040283,-151.0,0.00041816,120]
[394387713,1763517040294,-151.0,0.00041816,120]
[394387714,1763517040305,-151.0,0.00041816,120]
[394387715,1763517040315,-151.0,0.00041816,120]
[394387716,1763517040325,-151.0,0.00041816,120]
[394387717,1763517040335,-151.0,0.00041816,120]
[394387718,1763517040345,-151.0,0.00041816,120]
[394387719,1763517040357,-151.0,0.00041816,120]
[394387720,1763517040367,-151.0,0.00041816,120]
[394387721,1763517040378,-151.0,0.00041816,120]
[394387722,1763517040388,-151.0,0.00041816,120]
[394387723,1763517040398,-151.0,0.00041816,120]
[394387724,1763517040408,-151.0,0.00041816,120]
[394387727,1763517040586,-151.0,0.00041816,120]
[394387728,1763517040603,-151.0,0.00041816,120]
[394387729,1763517040614,-151.0,0.00041816,120]
[394387730,1763517040623,-151.0,0.00041816,120]
[394387731,1763517040632,-151.0,0.00041816,120]
[394387732,1763517040641,-151.0,0.00041816,120]
[394387733,1763517040651,-151.0,0.00041816,120]
[394387734,1763517040661,-237.273305,0.00041816,120]
[394387735,1763517040670,-151.0,0.00041816,120]
[394387737,1763517040679,-151.0,0.00041816,120]
[394387738,1763517040687,-163.500584,0.00041816,120]
[394387739,1763517040696,-151.0,0.00041816,120]
[394387740,1763517040706,-151.0,0.00041816,120]
[394387741,1763517040715,-151.0,0.00041816,120]
[394387742,1763517040724,-151.0,0.00041816,120]
[394387743,1763517040734,-156.46601,0.00041816,120]
[394387744,1763517040743,-151.0,0.00041816,120]
[394387745,1763517040752,-151.0,0.00041816,120]
[394387746,1763517040761,-156.937698,0.00041816,120]
[394387747,1763517040770,-151.0,0.00041816,120]
[394387748,1763517040779,-151.0,0.00041816,120]
[394387749,1763517040788,-151.0,0.00041816,120]
[394387750,1763517040796,-182.717014,0.00041816,120]
[394387751,1763517040805,-151.0,0.00041816,120]
[394387752,1763517040814,-151.0,0.00041816,120]
[394387753,1763517040823,-151.0,0.00041816,120]
[394387754,1763517040832,-151.0,0.00041816,120]
[394387755,1763517040841,-151.0,0.00041816,120]
[394387756,1763517040850,-151.0,0.00041816,120]
[394387757,1763517040860,-151.0,0.00041816,120]
[394387758,1763517040869,-151.0,0.00041816,120]
[394387759,1763517040877,-151.0,0.00041816,120]
[394387760,1763517040885,-164.319033,0.00041816,120]
[394387761,1763517040893,-151.0,0.00041816,120]
[394387762,1763517040901,-297.924645,0.00041816,120]
[394387763,1763517040910,-151.0,0.00041816,120]
[394387764,1763517040919,-160.36581,0.00041816,120]
[394387765,1763517040929,-151.0,0.00041816,14]
[394387766,1763517040938,-151.0,0.00041816,14]
[394387767,1763517040948,-9798.82676921,0.00041816,27]
[394387768,1763517040957,-2108942.79468766,0.00041816,7]
[394387769,1763517041069,-151.0,0.00041816,14]
[394387770,1763517041078,-163.6674879,0.00041816,7]
[394387771,1763517041118,-405.28705655,0.0004129,2]
[394387772,1763517041129,-303.68794345,0.0004129,2]
[394387773,1763517041138,-151.0,0.00041816,14]
[394387774,1763517041148,-154.844967,0.00041816,120]
[394387775,1763517041157,-8.98624144,0.00041816,14]
[394387776,1763517041169,-142.01375856,0.00041816,14]
[394387777,1763517041182,-151.0,0.00041816,14]
[394387778,1763517041192,-131.59853742,0.00041816,14]
[394387779,1763517041208,-19.40146258,0.00041816,14]
[394387780,1763517041217,-300.569012,0.00041816,14]
[394387781,1763517041227,-65445.66590004,0.00041816,7]
[394387816,1763517042928,-197.40270417,0.00040528,2]
[394387818,1763517042938,-1131.49222972,0.000411,2]
[394387820,1763517042947,-151.0,0.00041816,30]
[394387822,1763517042956,-151.0,0.00041816,30]
[394387824,1763517042965,-151.0,0.00041816,30]
[394387826,1763517042974,-151.0,0.00041816,30]
[394387828,1763517042983,-151.0,0.00041816,30]
[394387830,1763517042992,-151.0,0.00041816,30]
[394387832,1763517043001,-151.0,0.00041816,30]
[394387834,1763517043010,-151.0,0.00041816,30]
[394387836,1763517043019,-1100.66566608,0.00041816,7]
[394387837,1763517043056,-151.0,0.00041816,30]
[394387838,1763517043066,-628.28861067,0.00041816,7]
[394387839,1763517043077,-237049.03695809,0.00041816,7]
[394387840,1763517043259,-20951.78422372,0.00041816,7]
[394387841,1763517043270,-4627.8,0.00041816,7]
[394387846,1763517045843,-478.61,0.00040849,2]
[394387847,1763517045852,-700.83,0.00040849,2]
[394387848,1763517045862,-348.9,0.00040986,2]
[394387849,1763517045871,-150.0,0.00040986,2]
[394387850,1763517045881,-1209.94,0.00040986,2]
[394387851,1763517045890,-177.45,0.00040986,2]
[394387852,1763517045903,-169.55,0.00040986,2]
[394387853,1763517045912,-237.889601,0.00041816,30]
[394387854,1763517045921,-7933.26576348,0.00041816,7]
[394387855,1763517046107,-7328.73157366,0.00041816,7]
[394388654,1763517153193,235.541957,0.00041816,120]
[394388668,1763517329481,167.967047,0.00041816,60]
[394388675,1763517428350,300.0,0.00022261,120]
[394388676,1763517428476,300.0,0.00025297,120]
[394388704,1763517481007,666.97,0.00041816,120]
[394388705,1763517481183,666.97,0.00041816,120]
[394388706,1763517481510,666.97,0.00041816,120]
[394388707,1763517481768,666.97,0.00041816,120]
[394388708,1763517482021,666.97,0.00041816,120]
[394388709,1763517482253,666.97,0.00041816,120]
[394388710,1763517482492,666.97,0.00041816,120]
[394388711,1763517482733,666.97,0.00041816,120]
[394388712,1763517482995,666.97,0.00041816,120]
[394388713,1763517483350,666.97,0.00041816,120]
[394388714,1763517483983,666.97,0.00041816,120]
[394388715,1763517484357,666.97,0.00041816,120]
[394388716,1763517484588,666.97,0.00041816,120]
[394388717,1763517484826,666.97,0.00041816,120]
[394388718,1763517485083,666.97,0.00041816,120]
[394388719,1763517485416,666.97,0.00041816,120]
[394388720,1763517485658,666.97,0.00041816,120]
[394388721,1763517485930,666.97,0.00041816,120]
[394388722,1763517486176,666.97,0.00041816,120]
[394388723,1763517486421,666.97,0.00041816,120]
[394388724,1763517486710,666.97,0.00041816,120]
[394388725,1763517486953,666.97,0.00041816,120]
[394388726,1763517487189,666.97,0.00041816,120]
[394388727,1763517487700,667.19559542,0.00041816,120]
[394388728,1763517520393,2956.71284747,0.00041816,30]
[394388729,1763517581717,414.97640876,0.00041816,120]
[394388743,1763517844331,195.0,0.00022261,120]